[Event "German-ch Blitz Women 2022"]
[Site "Magdeburg"]
[Date "2022.08.13"]
[Round "5.1"]
[White "Wulf, Constanze"]
[Black "Paehtz, Elisabeth"]
[Result "0-1"]
[ECO "A05"]
[WhiteElo "1835"]
[BlackElo "2484"]
[Annotator "TA"]
[PlyCount "52"]
[EventDate "2022.08.10"]
[EventType "tourn"]
[EventCountry "GER"]
[SourceTitle "playchess.com"]
[Source "ChessBase"]
[SourceQuality "1"]
[TimeControl "180+2"]

{[%evp 12,52,1,-18,0,11,2,7,0,7,20,10,25,23,20,0,23,15,12,0,0,0,-6,-5,0,-153,-16,-8,0,-10,18,15,21,8,11,-56,-62,-64,-55,-146,0,-18,-41]} 1. Nf3 {[%emt 0:00:02]} Nf6 {[%emt 0:00:01]} 2. b3 {[%emt 0:00:01]} g6 {[%emt 0:00:01]} 3. Bb2 {[%emt 0:00:01]} Bg7 {[%emt 0:00:01]} 4. e3 {[%emt 0:00:01]} O-O {[%emt 0:00:02]} 5. Be2 {[%emt 0:00:02]} d6 {[%emt 0:00:00]} 6. c4 {[%emt 0:00:03]} e5 {[%emt 0:00:01]} 7. d3 {[%emt 0:00:07] 7.0-0 is the fancy move.} Qe7 {[%emt 0:00:04] A15: English Opening: 1...Nf6.} 8. O-O {[%emt 0:00:11]} c6 {[%emt 0:00:01] [#]} 9. Qc2 $146 {[%emt 0:00:16]} ({Predecessor:} 9. Nbd2 Nbd7 10. Qc2 Re8 11. Rfd1 h6 12. Ba3 c5 13. Ne4 b6 14. Nfd2 Bb7 15. Bf3 {1-0 (49) Bozic,V-Jandric,D (2058) Paracin 2013}) 9... Re8 {[%emt 0:00:01]} 10. Re1 {[%emt 0:00:04]} Nbd7 {[%emt 0:00:02]} 11. Nc3 {[%emt 0:00:04]} Nf8 {[%emt 0:00:03]} 12. b4 {[%emt 0:00:21]} Bf5 {[%emt 0:00:06]} 13. Qb3 {[%emt 0:00:36]} h6 {[%emt 0:00:08]} 14. b5 {[%emt 0:00:02]} Ne6 {[%emt 0:00:13]} 15. a4 {[%emt 0:00:08]} Nc5 {[%emt 0:00:03]} 16. Qd1 {[%emt 0:00:09]} Rad8 {[%emt 0:00:14]} 17. d4 {[%emt 0:00:07]} Nce4 {[%emt 0:00:07]} 18. a5 $2 {[%emt 0:00:36] [#]} ({White should play} 18. Nxe4 $11 Nxe4 19. Qb3) 18... Nxc3 {[%emt 0:00:04] Black is more active.} (18... Nxf2 $1 $17 {[%mdl 512]} 19. Qd2 (19. Kxf2 $2 Ng4+ 20. Kg1 exd4 $19) 19... N6e4 20. Nxe4 Nxe4) 19. Bxc3 $11 {[%emt 0:00:01]} Ne4 {[%emt 0:00:02]} 20. Bb2 {[%emt 0:00:07]} c5 {[%emt 0:00:03]} 21. d5 {[%emt 0:00:17]} Nxf2 {[%emt 0:00:30]} 22. Kxf2 {Black must now prevent Nd2.} e4 $1 {[%csl LRb2,LRf3] [#]} 23. Bxg7 {[%emt 0:00:21]} (23. Nd4 $1 $11 cxd4 24. Bxd4) 23... exf3 $15 {[%emt 0:00:01]} 24. Bxf3 {[%emt 0:00:06]} Kxg7 {[%emt 0:00:05]} 25. Qd2 {[%emt 0:00:02]} (25. Qb3 $15) 25... Qe5 {[%emt 0:00:05]} ({Black should try} 25... Qh4+ $17 26. Kg1 Qxc4) 26. b6 axb6 {Weighted Error Value: White=0.32/Black=0.27 (precise)} ({Don't play} 26... Qxh2 27. Rh1 Qe5 28. e4 (28. bxa7 h5 $15)) 0-1

[Event "German-ch Blitz Women 2022"]
[Site "Magdeburg"]
[Date "2022.08.13"]
[Round "5.2"]
[White "Stangl, Anita"]
[Black "Doll, Rebecca"]
[Result "1-0"]
[ECO "C51"]
[WhiteElo "2023"]
[BlackElo "1933"]
[Annotator "NA RC"]
[PlyCount "122"]
[EventDate "2022.08.10"]
[EventType "tourn"]
[EventCountry "GER"]
[SourceTitle "playchess.com"]
[Source "ChessBase"]
[SourceQuality "1"]
[TimeControl "180+2"]

1. e4 {[%emt 0:00:00]} e5 {[%emt 0:00:01]} 2. Nf3 {[%emt 0:00:01]} Nc6 {[%emt 0:00:02]} 3. Bc4 {[%emt 0:00:01]} Bc5 {[%emt 0:00:02]} 4. b4 {[%emt 0:00:01]} Bxb4 {[%emt 0:00:02]} 5. c3 {[%emt 0:00:00]} Be7 {[%emt 0:00:02]} 6. d4 {[%emt 0:00:01]} Na5 {[%emt 0:00:04]} 7. Nxe5 {[%emt 0:00:06]} Nxc4 {[%emt 0:00:02]} 8. Nxc4 {[%emt 0:00:01]} d5 {[%emt 0:00:01]} 9. exd5 {[%emt 0:00:01]} Qxd5 {[%emt 0:00:01]} 10. Ne3 {[%emt 0:00:00]} Qd8 {[%emt 0:00:10]} 11. O-O {[%emt 0:00:04]} Nf6 {[%emt 0:00:02]} 12. Bb2 {[%emt 0:00:05]} O-O {[%emt 0:00:09]} 13. Nd2 {[%emt 0:00:05]} Be6 {[%emt 0:00:26]} 14. Nf3 {[%emt 0:00:02]} Nd5 {[%emt 0:00:20]} 15. Qc2 {[%emt 0:00:28]} Nf4 {[%emt 0:00:19]} 16. c4 {[%emt 0:00:14]} c6 {[%emt 0:00:05]} 17. Rfe1 {[%emt 0:00:05]} Qc7 {[%emt 0:00:15]} 18. Ne5 {[%emt 0:00:06]} f6 {[%emt 0:00:12]} 19. Nd3 {[%emt 0:00:05]} Nxd3 {[%emt 0:00:17]} 20. Qxd3 {[%emt 0:00:01]} Bf7 {[%emt 0:00:02]} 21. Rac1 {[%emt 0:00:04]} Bg6 {[%emt 0:00:03]} 22. Qb3 {[%emt 0:00:01]} Qb6 {[%emt 0:00:07]} 23. d5 {[%emt 0:00:19]} Bc5 {[%emt 0:00:18]} 24. Rcd1 {[%emt 0:00:24]} Qxb3 {[%emt 0:00:10]} 25. axb3 {[%emt 0:00:01]} Bxe3 {[%emt 0:00:02]} 26. Rxe3 {[%emt 0:00:02]} cxd5 {[%emt 0:00:01]} 27. cxd5 {[%emt 0:00:07]} Rfe8 {[%emt 0:00:07]} 28. d6 {[%emt 0:00:06]} Rxe3 {[%emt 0:00:03]} 29. fxe3 {[%emt 0:00:01]} Rd8 {[%emt 0:00:01]} 30. Rd2 {[%emt 0:00:07]} Kf7 {[%emt 0:00:02]} 31. Ba3 {[%emt 0:00:01]} Ke6 {[%emt 0:00:06]} 32. Kf2 {[%emt 0:00:02]} Kd7 {[%emt 0:00:01]} 33. Rd4 {[%emt 0:00:03]} Rc8 {[%emt 0:00:02]} 34. Rc4 {[%emt 0:00:06]} Rxc4 {[%emt 0:00:04]} 35. bxc4 {[%emt 0:00:01]} b6 {[%emt 0:00:01]} 36. Kf3 {[%emt 0:00:09]} Bd3 {[%emt 0:00:02]} 37. c5 {[%emt 0:00:00]} bxc5 {[%emt 0:00:01]} 38. Bxc5 {[%emt 0:00:01]} a5 {[%emt 0:00:01]} 39. e4 {[%emt 0:00:05]} a4 {[%emt 0:00:04]} 40. Ke3 {[%emt 0:00:01]} Bf1 {[%emt 0:00:04]} 41. g3 {[%emt 0:00:01]} Bb5 {[%emt 0:00:02]} 42. Kd4 {[%emt 0:00:02]} Bc6 {[%emt 0:00:01]} 43. e5 {[%emt 0:00:02]} fxe5+ {[%emt 0:00:02]} 44. Kxe5 {[%emt 0:00:01]} Bb5 {[%emt 0:00:03]} 45. Bd4 {[%emt 0:00:03]} Bc4 {[%emt 0:00:05]} 46. Bb2 {[%emt 0:00:03]} Bb3 {[%emt 0:00:03]} 47. g4 {[%emt 0:00:02]} Be6 {[%emt 0:00:03]} 48. g5 {[%emt 0:00:02]} Bg4 {[%emt 0:00:03]} 49. Kd5 {[%emt 0:00:04]} g6 {[%emt 0:00:05]} 50. Ke5 {[%emt 0:00:03]} Bd1 {[%emt 0:00:04]} 51. Ba3 {[%emt 0:00:01]} Bb3 {[%emt 0:00:02]} 52. Kf6 {[%emt 0:00:01]} Bc2 {[%emt 0:00:16]} 53. Kg7 {[%emt 0:00:02]} Ke6 {[%emt 0:00:02]} 54. Kxh7 {[%emt 0:00:02]} Bf5 {[%emt 0:00:01]} 55. Kg7 {[%emt 0:00:05]} Be4 {[%emt 0:00:01]} 56. h4 {[%emt 0:00:02]} Bf5 {[%emt 0:00:01]} 57. Kh6 {[%emt 0:00:01]} Bg4 {[%emt 0:00:01]} 58. Kxg6 {[%emt 0:00:01]} Bf5+ {[%emt 0:00:01]} 59. Kg7 {[%emt 0:00:01]} Be4 {[%emt 0:00:01]} 60. g6 {[%emt 0:00:01]} Bf5 {[%emt 0:00:04]} 61. h5 {[%emt 0:00:01]} Kd5 1-0

[Event "German-ch Blitz Women 2022"]
[Site "Magdeburg"]
[Date "2022.08.13"]
[Round "5.3"]
[White "Falke, Ornella"]
[Black "Kunze, Kerstin"]
[Result "1-0"]
[ECO "C78"]
[WhiteElo "1912"]
[BlackElo "2020"]
[Annotator "TA"]
[PlyCount "81"]
[EventDate "2022.08.10"]
[EventType "tourn"]
[EventCountry "GER"]
[SourceTitle "playchess.com"]
[Source "ChessBase"]
[SourceQuality "1"]
[TimeControl "180+2"]

{[%evp 13,81,29,48,29,157,9,47,15,13,21,57,16,24,20,71,73,308,-14,0,-24,-27,-28,40,29,54,2,77,22,71,76,124,26,23,0,0,0,569,571,1260,468,472,470,477,473,470,466,469,467,508,490,557,548,590,581,556,518,650,597,590,586,735,730,732,683,725,711,1235,1015,29994,6199]} 1. e4 {[%emt 0:00:02]} e5 {[%emt 0:00:01]} 2. Nf3 {[%emt 0:00:02]} Nc6 {[%emt 0:00:00]} 3. Bb5 {[%emt 0:00:01][%cal Bf1b5,Bb5a4,Ba4b3][%mdl 32]} a6 {[%emt 0:00:01]} 4. Ba4 {[%emt 0:00:01]} Nf6 {[%emt 0:00:01]} 5. O-O {[%emt 0:00:04]} b5 {[%emt 0:00:03]} 6. Bb3 {[%emt 0:00:01]} Be7 {[%emt 0:00:00] The old main line.} 7. d4 {[%emt 0:00:10]} Nxe4 {[%emt 0:00:19]} 8. Nxe5 {[%emt 0:00:20] C80: Open Ruy Lopez: Sidelines and 9 Nbd2.} O-O {[%emt 0:00:20]} (8... Nxe5 $11 {remains equal.} 9. dxe5 Bb7) 9. Re1 {[%emt 0:00:08]} (9. Nxf7 $16 Rxf7 10. Bxf7+ Kxf7 11. d5) 9... Nf6 {[%emt 0:00:56]} 10. Nxc6 {[%emt 0:00:29] White is slightly better.} dxc6 {[%emt 0:00:01] [#]} 11. Nc3 $146 {[%emt 0:00:06][%cal Bb1c3,Bc3e2,Be2d4][%mdl 32]} ({Predecessor:} 11. c3 c5 12. dxc5 Qxd1 13. Bxd1 Bxc5 14. Bf3 Ra7 15. b4 Bb6 16. a4 bxa4 17. Rxa4 {½-½ (25) Haces,R-Gajadin,D Thessaloniki 1984}) 11... h6 {[%emt 0:00:25]} 12. Bf4 {[%emt 0:00:15]} Bg4 {[%emt 0:00:05]} 13. Qd3 {[%emt 0:00:07]} Qd7 {[%emt 0:00:06]} (13... Bd6 $11 14. Be5 a5) 14. h3 $16 {[%emt 0:00:05] White is more active.} Bf5 {[%emt 0:00:01] [#]} (14... Bd6 $16) 15. Qd2 $2 {[%emt 0:00:23]} (15. Rxe7 $1 $18 {[%mdl 512]} Bxd3 (15... Qxe7 16. Qxf5) 16. Rxd7 Nxd7 17. cxd3) 15... Rad8 {[%emt 0:00:06]} 16. Ne2 {[%emt 0:00:03]} c5 {[%emt 0:00:08] Threatens to win with ...c4.} 17. c3 {[%emt 0:00:07]} cxd4 {[%emt 0:00:02]} (17... Rfe8 $11) 18. Nxd4 $14 {[%emt 0:00:07][%cal Oe1e7] Black must now prevent Rxe7!} Bg6 {[%emt 0:00:07] [#]} 19. Rad1 {[%emt 0:00:11]} (19. Rxe7 $1 $14 Qxe7 20. Nc6) 19... Ne4 {[%emt 0:00:09]} (19... Rfe8 $11) 20. Qe3 {[%emt 0:00:04]} (20. Qe2 $16) 20... Bd6 {[%emt 0:00:21]} (20... Bc5 $1 $11) 21. Bxd6 $16 {[%emt 0:00:20]} Nxd6 {[%emt 0:00:01] [#]} (21... cxd6 $142 22. Bd5 Nf6) 22. Qf3 {[%emt 0:00:12]} (22. Ne6 $1 $16 {[%mdl 512]} Rfe8 23. Qg3) 22... Rfe8 {[%emt 0:00:20]} 23. Qg3 {[%emt 0:00:24] And now Rxe8+ would win.} Rxe1+ 24. Rxe1 {[%cal Bd1e1,Be1e3,Be3e4,Be4d4,Bd4d7][%mdl 32]} Ne4 $2 {[%emt 0:00:06][%mdl 8192] Black is on the road to losing.} 25. Qxg6 $1 $18 {[%emt 0:00:02]} Nc5 {[%emt 0:00:07]} 26. Qc2 {[%emt 0:00:00]} (26. Nf5 $142 {[%csl Gf5][%cal Rg6g7]} Ne6 27. Bxe6 fxe6 28. Rxe6) 26... Nxb3 {[%emt 0:00:05]} 27. Qxb3 {[%emt 0:00:02]} ({Don't take} 27. Nxb3 Re8 28. Rd1 Qe7 $18) ({Much less strong is} 27. axb3 c5 28. Nf3 Qd5 $18) 27... c5 {[%emt 0:00:00]} 28. Nf3 {[%emt 0:00:02]} Qd3 {[%emt 0:00:04]} 29. Re3 {[%emt 0:00:05]} ({Resist} 29. Ne5 c4 $18) 29... Qd6 {[%emt 0:00:02]} 30. Qc2 {[%emt 0:00:01]} c4 {[%emt 0:00:00]} 31. Re4 {[%emt 0:00:03]} Rc8 {[%emt 0:00:02]} 32. Rd4 {[%emt 0:00:01]} Qf6 {[%emt 0:00:00]} 33. Qe4 Qb6 {[%emt 0:00:03]} 34. Kh2 {[%emt 0:00:02]} Qa5 {[%emt 0:00:01]} 35. a3 {[%emt 0:00:01]} Qb6 {[%emt 0:00:01]} 36. Rd7 {[%emt 0:00:02]} Qb8+ {[%emt 0:00:01]} 37. g3 {[%emt 0:00:02]} Rf8 {[%emt 0:00:01]} 38. Qd5 {[%emt 0:00:02]} Qe8 {[%emt 0:00:01]} 39. Ne5 {[%emt 0:00:00]} Qb8 {[%emt 0:00:04]} 40. Nxf7 {[%emt 0:00:04]} Kh7 {[%emt 0:00:02]} 41. Qe6 {[%emt 0:00:03] Weighted Error Value: White=0.65/Black=0.71} (41. Qf5+ $142 Kg8 42. Qg6 Qe5 43. Nxe5 Rxf2+ 44. Kg1 Rg2+ 45. Kxg2 Kh8 46. Qxg7#) 1-0

[Event "German-ch Blitz Women 2022"]
[Site "Magdeburg"]
[Date "2022.08.13"]
[Round "5.4"]
[White "Kosovska, Olena"]
[Black "Rath, Alina"]
[Result "0-1"]
[ECO "B23"]
[WhiteElo "1831"]
[BlackElo "2062"]
[Annotator "NA RC"]
[PlyCount "144"]
[EventDate "2022.08.10"]
[EventType "tourn"]
[EventCountry "GER"]
[SourceTitle "playchess.com"]
[Source "ChessBase"]
[SourceQuality "1"]
[TimeControl "180+2"]

1. e4 {[%emt 0:00:01]} c5 {[%emt 0:00:00]} 2. Nc3 {[%emt 0:00:01]} Nc6 {[%emt 0:00:02]} 3. f4 {[%emt 0:00:01]} g6 {[%emt 0:00:01]} 4. Nf3 {[%emt 0:00:01]} Bg7 {[%emt 0:00:01]} 5. Bb5 {[%emt 0:00:02]} Nd4 {[%emt 0:00:04]} 6. O-O {[%emt 0:00:02]} e6 {[%emt 0:00:01]} 7. d3 {[%emt 0:00:05]} Ne7 {[%emt 0:00:02]} 8. Be3 {[%emt 0:00:19]} O-O {[%emt 0:00:03]} 9. e5 {[%emt 0:00:11]} Nef5 {[%emt 0:00:23]} 10. Bf2 {[%emt 0:00:02]} a6 {[%emt 0:00:11]} 11. Ba4 {[%emt 0:00:11]} b5 {[%emt 0:00:12]} 12. Bb3 {[%emt 0:00:01]} Bb7 {[%emt 0:00:02]} 13. Ne4 {[%emt 0:00:10]} d5 {[%emt 0:00:08]} 14. Nxc5 {[%emt 0:00:10]} Nxf3+ {[%emt 0:00:10]} 15. Qxf3 {[%emt 0:00:03]} Bc6 {[%emt 0:00:01]} 16. d4 {[%emt 0:00:16]} a5 {[%emt 0:00:05]} 17. c3 {[%emt 0:00:01]} Qb6 {[%emt 0:00:04]} 18. Bc2 {[%emt 0:00:13]} Ne7 {[%emt 0:00:01]} 19. Rae1 {[%emt 0:00:09]} Rfb8 {[%emt 0:00:03]} 20. g4 {[%emt 0:00:02]} a4 {[%emt 0:00:13]} 21. f5 {[%emt 0:00:04]} exf5 {[%emt 0:00:08]} 22. gxf5 {[%emt 0:00:03]} gxf5 {[%emt 0:00:06]} 23. Bh4 {[%emt 0:00:37]} Ng6 {[%emt 0:00:03]} 24. Bf6 {[%emt 0:00:10]} Be8 {[%emt 0:00:27]} 25. Qxf5 {[%emt 0:00:09]} Ra7 {[%emt 0:00:08]} 26. Qg5 {[%emt 0:00:16]} Bf8 {[%emt 0:00:02]} 27. e6 {[%emt 0:00:10]} Rc8 {[%emt 0:00:28]} 28. exf7+ {[%emt 0:00:11]} Bxf7 {[%emt 0:00:02]} 29. Ne6 {[%emt 0:00:04]} Bxe6 {[%emt 0:00:22]} 30. Bxg6 {[%emt 0:00:01]} hxg6 {[%emt 0:00:02]} 31. Qxg6+ {[%emt 0:00:02]} Bg7 {[%emt 0:00:00]} 32. Be5 {[%emt 0:00:09]} Qc6 {[%emt 0:00:15]} 33. Re2 {[%emt 0:00:01]} Qe8 {[%emt 0:00:01]} 34. Qg3 {[%emt 0:00:03]} Rf7 {[%emt 0:00:05]} 35. Rg2 {[%emt 0:00:01]} Rxf1+ {[%emt 0:00:01]} 36. Kxf1 {[%emt 0:00:01]} Qf7+ {[%emt 0:00:02]} 37. Kg1 {[%emt 0:00:02]} Kf8 {[%emt 0:00:01]} 38. Bd6+ {[%emt 0:00:01]} Ke8 {[%emt 0:00:01]} 39. Rf2 {[%emt 0:00:04]} Qg8 {[%emt 0:00:04]} 40. Rg2 {[%emt 0:00:02]} Kd7 {[%emt 0:00:02]} 41. Qh4 {[%emt 0:00:01]} Kxd6 {[%emt 0:00:02]} 42. Qf4+ {[%emt 0:00:02]} Kd7 {[%emt 0:00:01]} 43. Qg5 {[%emt 0:00:02]} Rf8 {[%emt 0:00:01]} 44. Qxg7+ {[%emt 0:00:02]} Qxg7 {[%emt 0:00:01]} 45. Rxg7+ {[%emt 0:00:01]} Rf7 {[%emt 0:00:01]} 46. Rg6 {[%emt 0:00:02]} Ke7 {[%emt 0:00:02]} 47. Kg2 {[%emt 0:00:01]} Bd7 {[%emt 0:00:03]} 48. h4 {[%emt 0:00:03]} Rf6 {[%emt 0:00:02]} 49. Rg5 {[%emt 0:00:01]} Kd6 {[%emt 0:00:01]} 50. h5 {[%emt 0:00:02]} Rh6 {[%emt 0:00:02]} 51. Kf3 {[%emt 0:00:06]} Be8 {[%emt 0:00:01]} 52. Kg4 {[%emt 0:00:03]} Bd7+ {[%emt 0:00:01]} 53. Kf4 {[%emt 0:00:02]} Ke6 {[%emt 0:00:03]} 54. Rg6+ {[%emt 0:00:02]} Rxg6 {[%emt 0:00:01]} 55. hxg6 {[%emt 0:00:01]} Be8 {[%emt 0:00:02]} 56. g7 {[%emt 0:00:02]} Bf7 {[%emt 0:00:01]} 57. b3 {[%emt 0:00:01]} axb3 {[%emt 0:00:01]} 58. axb3 {[%emt 0:00:00]} Kf6 {[%emt 0:00:01]} 59. Kg4 {[%emt 0:00:08]} Bg8 {[%emt 0:00:06]} 60. Kf4 {[%emt 0:00:02]} Bf7 {[%emt 0:00:01]} 61. Kg4 {[%emt 0:00:01]} Be6+ {[%emt 0:00:00]} 62. Kf4 {[%emt 0:00:01]} Bg8 {[%emt 0:00:01]} 63. Kg4 {[%emt 0:00:01]} Ke6 {[%emt 0:00:02]} 64. c4 {[%emt 0:00:02]} dxc4 {[%emt 0:00:01]} 65. bxc4 {[%emt 0:00:02]} b4 {[%emt 0:00:01]} 66. Kf4 {[%emt 0:00:01]} b3 {[%emt 0:00:01]} 67. d5+ {[%emt 0:00:01]} Kd6 {[%emt 0:00:02]} 68. Ke4 {[%emt 0:00:00]} b2 {[%emt 0:00:01]} 69. Kd4 {[%emt 0:00:01]} b1=Q {[%emt 0:00:01]} 70. c5+ {[%emt 0:00:01]} Kd7 {[%emt 0:00:01]} 71. Ke5 {[%emt 0:00:01]} Qb2+ {[%emt 0:00:01]} 72. Kf5 {[%emt 0:00:01]} Qxg7 {[%emt 0:00:01]} 0-1

[Event "German-ch Blitz Women 2022"]
[Site "Magdeburg"]
[Date "2022.08.13"]
[Round "5.5"]
[White "Leveikina, Jevgenija"]
[Black "Skibbe, Diana"]
[Result "0-1"]
[ECO "A80"]
[WhiteElo "2061"]
[BlackElo "1943"]
[Annotator "NA RC"]
[PlyCount "75"]
[EventDate "2022.08.10"]
[EventType "tourn"]
[EventCountry "GER"]
[SourceTitle "playchess.com"]
[Source "ChessBase"]
[SourceQuality "1"]
[TimeControl "180+2"]

1. d4 {[%emt 0:00:00]} f5 {[%emt 0:00:01]} 2. Bg5 {[%emt 0:00:01]} h6 {[%emt 0:00:02]} 3. Bh4 {[%emt 0:00:01]} g5 {[%emt 0:00:01]} 4. Bg3 {[%emt 0:00:02]} f4 {[%emt 0:00:05]} 5. e3 {[%emt 0:00:01]} Nf6 {[%emt 0:00:02]} 6. exf4 {[%emt 0:00:01]} d6 {[%emt 0:00:15]} 7. Bd3 {[%emt 0:00:06]} Bg7 {[%emt 0:00:09]} 8. Bg6+ {[%emt 0:00:02]} Kf8 {[%emt 0:00:01]} 9. c3 {[%emt 0:00:10]} Nc6 {[%emt 0:00:09]} 10. fxg5 {[%emt 0:00:07]} hxg5 {[%emt 0:00:03]} 11. Nf3 {[%emt 0:00:04]} Bg4 {[%emt 0:00:31]} 12. Qb3 {[%emt 0:00:08]} e6 {[%emt 0:00:24]} 13. Nxg5 {[%emt 0:00:06]} Qd7 {[%emt 0:00:24]} 14. f3 {[%emt 0:00:16]} Na5 {[%emt 0:00:28]} 15. Qc2 {[%emt 0:00:13]} Bf5 {[%emt 0:00:04]} 16. Bxf5 {[%emt 0:00:11]} exf5 {[%emt 0:00:01]} 17. O-O {[%emt 0:00:20]} Re8 {[%emt 0:00:08]} 18. Na3 {[%emt 0:00:10]} Nd5 {[%emt 0:00:08]} 19. Bf2 {[%emt 0:00:25]} Bf6 {[%emt 0:00:06]} 20. c4 {[%emt 0:00:33]} Nf4 {[%emt 0:00:09]} 21. b4 {[%emt 0:00:14]} Nc6 {[%emt 0:00:05]} 22. d5 {[%emt 0:00:01]} Ne5 {[%emt 0:00:04]} 23. Ne6+ {[%emt 0:00:03]} Nxe6 {[%emt 0:00:07]} 24. dxe6 {[%emt 0:00:01]} Qxe6 {[%emt 0:00:02]} 25. Rae1 {[%emt 0:00:03]} Bg5 {[%emt 0:00:07]} 26. Bd4 {[%emt 0:00:10]} Bf4 {[%emt 0:00:06]} 27. g3 {[%emt 0:00:03]} Bxg3 {[%emt 0:00:06]} 28. hxg3 {[%emt 0:00:03]} Qh6 {[%emt 0:00:01]} 29. Qg2 {[%emt 0:00:02]} Rh7 {[%emt 0:00:04]} 30. Bxe5 {[%emt 0:00:05]} dxe5 {[%emt 0:00:02]} 31. Nb5 {[%emt 0:00:02]} c6 {[%emt 0:00:03]} 32. Nc3 {[%emt 0:00:04]} Ree7 {[%emt 0:00:02]} 33. b5 {[%emt 0:00:05]} Reg7 {[%emt 0:00:01]} 34. Ne2 {[%emt 0:00:04]} f4 {[%emt 0:00:02]} 35. g4 {[%emt 0:00:02]} Rg8 {[%emt 0:00:02]} 36. Nc3 {[%emt 0:00:07]} Rgh8 {[%emt 0:00:01]} 37. Rxe5 Qd6 38. Rfe1 0-1

[Event "German-ch Blitz Women 2022"]
[Site "Magdeburg"]
[Date "2022.08.13"]
[Round "5.6"]
[White "Heil, Marina"]
[Black "Braun, Kristin"]
[Result "0-1"]
[ECO "A16"]
[WhiteElo "1926"]
[BlackElo "1897"]
[Annotator "TA"]
[PlyCount "118"]
[EventDate "2022.08.10"]
[EventType "tourn"]
[EventCountry "GER"]
[SourceTitle "playchess.com"]
[Source "ChessBase"]
[SourceQuality "1"]
[TimeControl "180+2"]

{[%evp 17,118,20,44,0,13,-36,-15,-23,-20,-29,0,-30,11,0,47,-33,-42,-39,-37,-48,-17,-60,-25,-30,66,66,66,66,134,137,122,23,100,81,129,26,102,109,93,-33,-17,-134,-131,-129,-142,-191,-185,-167,-91,-248,-254,-243,-222,-211,-106,-94,-92,-93,-86,-153,-132,-141,-118,-118,-118,-119,-122,-143,-65,-179,-175,-189,-182,-192,-190,-195,-204,-220,-168,-194,-165,-201,-195,-211,-160,-427,0,-169,0,-412,-437,-1410,-1369,-29992,-1447,-29979,-29980,-5822,-5737,-29986,-29987,-29987,-29987]} 1. c4 Nf6 2. Nc3 g6 3. g3 Bg7 4. Bg2 d6 5. d4 O-O 6. e4 e5 7. d5 a5 8. Nge2 Na6 9. O-O Nc5 10. a3 {E72: King's Indian: 4 e4 d6 5 g3.} a4 11. h3 (11. Bg5 $11) 11... Bd7 12. Be3 {[#] The position is equal.} Nb3 $146 ({Predecessor:} 12... Ne8 13. f4 f5 14. fxe5 Bxe5 15. exf5 Rxf5 16. Rxf5 Bxf5 17. g4 Bd7 18. Bxc5 dxc5 {½-½ (61) Hugaert,A (2065)-Boukhris,Y (1870) Condom 2008}) 13. Rb1 Qc8 14. Kh2 Nh5 15. Nc1 Nxc1 (15... Na5 $11) 16. Qxc1 ({White should try} 16. Rxc1 $14 b6 17. Re1) 16... f5 $15 {[%cal Bf7f5,Bf5f4][%mdl 32] [#] Strongly threatening ...f4.} 17. Qd1 f4 18. Bd2 Qd8 19. g4 Nf6 (19... Qh4 {with more complications.} 20. Be1 Rf7 21. Nb5 Rc8) 20. f3 h5 (20... Ne8 $11) 21. g5 $14 Nh7 (21... Nxd5 $2 22. cxd5 (22. Nxd5 c6 $16) 22... Qxg5 23. Rg1 $18) 22. h4 Nxg5 23. hxg5 $16 Qxg5 24. Rf2 (24. Rh1 $16) 24... Qg3+ (24... Qd8 $1 $11) 25. Kg1 h4 (25... Kf7 $142) 26. Kf1 (26. Ne2 $16 Qg5 27. Kh1) 26... Qh2 (26... h3 $11 27. Bh1 Bf6) 27. Ke2 {Threatens to win with Bh1.} h3 28. Bf1 (28. Bh1 $16 Qg3 29. Qf1) 28... Qg3 $36 {[%mdl 2048] next ...Kf7 is good for Black. Black has some pressure.} 29. Be1 (29. Bxh3 $1 $11 {remains equal.} Bxh3 30. Qh1) 29... h2 $17 {Black is much more active. The white rooks are badly placed.} 30. Bg2 Qxg2 $1 {[%mdl 64] [#] Remove Defender. Dancing on a razor blade.} 31. Rxg2 (31. Bd2 $17 {was worth a try.} Qg5 32. Rxh2) 31... h1=Q $19 32. Rf2 Kf7 (32... g5 $19 33. Bd2 Qh5) 33. Qc2 $2 (33. Nb5 $17 {might work better.}) 33... Rh8 34. Bd2 Qh4 35. Rg1 Qf6 (35... g5 $19 {...g4 is the strong threat.} 36. Rfg2 Bf6) 36. Rfg2 $17 Rh6 37. Nb5 c6 38. Nc3 ({White should play} 38. Nc7 Rc8 39. Ba5) 38... c5 39. Nb5 Bxb5 40. cxb5 b6 41. Be1 Qe7 42. Kd3 Bf6 (42... Qa7 $17 43. Bc3 Rah8) 43. Kc4 (43. Rh2 $1 $15 Rxh2 44. Qxh2) 43... g5 $19 44. Qf2 Rah8 45. Qc2 Qa7 46. Qd1 Rh2 47. Qc2 R2h3 48. Qe2 R8h5 49. Qf2 Qa8 50. Qe2 Qc8 51. Qc2 $2 (51. b3 $17) 51... Qa8 $2 (51... Rxf3 52. Qxa4 Qd7) 52. Qe2 $1 Qc8 $2 (52... Qh8 53. Qd1 Rh2 54. Qxa4 Rxg2 55. Rxg2 (55. Qa7+ Kg6 $17) 55... Rh1 56. Qa7+ Kg6) 53. Qc2 $1 Rxf3 54. Qe2 (54. Qxa4 $142 Re3 55. Qc2) 54... Rhh3 {White must now prevent ...Rb3.} 55. Qd2 Re3 (55... Rb3 $142 56. Rg3 Qd7 57. Qb4 cxb4 58. Rxb3 Rxb3 59. Bc3 bxc3 60. Kd3 Rxb2 61. Kxc3 Qxb5 62. Rh1 Qb3#) 56. Bg3 Rhxg3 57. Rxg3 Rxg3 ({Not} 57... fxg3 58. Qxe3 Qg4 59. Kd3 $16 (59. Rxg3 Qd1 $11)) 58. Rxg3 fxg3 59. Qg2 Qg4 {Weighted Error Value: White=0.74/Black=0.53} 0-1